bitfinex/quotes_SOLUSD_20230103
["timestamp","ask_amount","ask_price","bid_price","bid_amount"]
[1672789590546,2.6e-06,13.34,13.339,161.146]
[1672789599153,2.6e-06,13.34,13.339,172.22737784]
[1672789602005,2.6e-06,13.34,13.339,161.146]
[1672789602636,2.6e-06,13.34,13.339,172.22737784]
[1672789602957,2.6e-06,13.34,13.339,161.146]
[1672789603452,264.6,13.349,13.339,161.146]
[1672789603876,50.0,13.348,13.331,24.9467]
[1672789604116,56.24,13.347,13.332,164.4285]
[1672789604322,30.0,13.346,13.332,164.4285]
[1672789604523,76.25,13.345,13.332,175.50987784]
[1672789604856,77.37952721,13.345,13.332,164.4285]
[1672789605998,30.0,13.344,13.332,164.4285]
[1672789606204,56.26,13.343,13.332,164.4285]
[1672789606416,30.0,13.342,13.332,164.4285]
[1672789607363,6.34,13.34,13.321,24.8483]
[1672789607562,106.27,13.339,13.322,157.5984]
[1672789608215,106.27,13.339,13.323,49.0877]
[1672789611037,76.27,13.339,13.323,49.0877]
[1672789612526,76.27,13.339,13.324,30.0]
[1672789613449,20.0,13.339,13.324,30.0]
[1672789613654,48.5781,13.341,13.324,30.0]
[1672789613655,48.5781,13.341,13.324,41.08137784]
[1672789613879,48.5781,13.341,13.326,30.0]
[1672789614098,48.5781,13.341,13.327,67.6875]
[1672789614412,48.5781,13.341,13.328,30.0]
[1672789614625,48.5781,13.341,13.328,143.6537]
[1672789614821,48.5781,13.341,13.328,113.6537]
[1672789615247,80.8543,13.344,13.328,161.3412]
[1672789615460,80.8543,13.344,13.33,30.0]
[1672789615669,56.25,13.344,13.33,30.0]
[1672789615881,1.12659879,13.344,13.33,30.0]
[1672789616090,56.26,13.343,13.331,48.6421]
[1672789616935,30.0,13.344,13.331,48.6421]
[1672789617141,30.0,13.344,13.332,48.6421]
[1672789617569,56.25,13.345,13.332,48.6421]
[1672789617893,31.12659879,13.344,13.332,48.6421]
[1672789618618,1.12659879,13.344,13.332,48.6421]
[1672789619057,1.12659879,13.344,13.333,30.0]
[1672789619460,1.12659879,13.344,13.334,119.5713]
[1672789619776,20.0,13.346,13.334,119.5713]
[1672789620829,31.12952721,13.345,13.334,119.5713]
[1672789621035,1.12952721,13.345,13.334,119.5713]
[1672789623998,1.12952721,13.345,13.335,61.08137784]
[1672789624192,1.12952721,13.345,13.335,109.60617784]
[1672789624516,1.12952721,13.345,13.336,11.08137784]
[1672789624731,30.0,13.352,13.337,20.0]
[1672789624945,30.0,13.352,13.337,68.191]
[1672789625565,30.0,13.352,13.338,48.191]
[1672789625783,1.14708853,13.351,13.338,48.191]
[1672789626102,1.14708853,13.351,13.339,48.191]
[1672789626314,1.14708853,13.351,13.34,48.191]
[1672789626707,79.8528,13.354,13.34,48.191]
[1672789627138,30.0,13.354,13.341,158.0512]
[1672789628825,1.15293879,13.353,13.341,158.0512]
[1672789630805,1.15293879,13.353,13.342,30.0]
[1672789631011,1.15293879,13.353,13.342,77.2322]
[1672789631226,1.15293879,13.353,13.342,88.31357784]
[1672789631448,1.15293879,13.353,13.342,58.31357784]
[1672789631863,1.15293879,13.353,13.342,47.2322]
[1672789632504,12.77,13.35,13.332,24.3026]
[1672789632715,30.0,13.348,13.334,109.5068]
[1672789632925,76.24,13.347,13.335,30.0]
[1672789633136,20.0,13.347,13.334,109.5068]
[1672789633667,30.0,13.347,13.334,109.5068]
[1672789633877,21.13245519,13.346,13.334,109.5068]
[1672789634815,1.13245519,13.346,13.334,109.5068]
[1672789635028,1.13245519,13.346,13.336,30.0]
[1672789635233,1.13245519,13.346,13.338,30.0]
[1672789636073,1.13245519,13.346,13.338,78.3236]
[1672789636492,1.13245519,13.346,13.338,89.40497784]
[1672789636709,1.13245519,13.346,13.339,24.8682]
[1672789637456,1.13245519,13.346,13.34,112.4302]
[1672789637771,46.84977013,13.353,13.34,112.4302]
[1672789637960,0.75497013,13.353,13.341,22.5804]
[1672789638169,0.75497013,13.353,13.342,22.5804]
[1672789639012,0.75497013,13.353,13.342,47.4901]
[1672789641547,0.75497013,13.353,13.343,23.3381]
[1672789641745,1.15293879,13.353,13.343,23.3381]
[1672789643553,12.74,13.35,13.32,216.7983482]
[1672789643743,30.0,13.348,13.334,119.6678]
[1672789644160,20.0,13.347,13.334,119.6678]
[1672789645664,20.0,13.347,13.334,143.1661]
[1672789648172,30.0,13.347,13.334,143.1661]
[1672789648381,20.0,13.346,13.334,143.1661]
[1672789650574,20.0,13.347,13.334,154.24747784]
[1672789651011,20.0,13.347,13.334,143.1661]
[1672789652062,23.7563,13.348,13.335,20.0]
[1672789652263,126.2571,13.352,13.335,74.174]
[1672789652264,79.8029,13.352,13.335,74.174]
[1672789652471,79.8029,13.352,13.337,30.0]
[1672789652472,23.5829,13.352,13.337,30.0]
[1672789652688,23.5829,13.352,13.338,46.9942]
[1672789652902,23.5829,13.352,13.335,11.08137784]
[1672789653102,42.77,13.35,13.334,119.6678]
[1672789653317,30.0,13.348,13.334,119.6678]
[1672789653637,30.0,13.346,13.334,143.63]
[1672789653831,20.0,13.345,13.334,143.63]
[1672789655096,20.0,13.346,13.334,143.63]
[1672789655644,20.0,13.347,13.334,143.63]
[1672789657745,20.0,13.347,13.335,41.08137784]
[1672789658568,20.0,13.347,13.335,11.08137784]
[1672789659636,20.0,13.347,13.334,143.63]
[1672789660669,23.5829,13.352,13.336,30.0]
[1672789660879,23.5829,13.352,13.338,30.0]
[1672789661111,30.0,13.354,13.339,46.4195]
[1672789661304,54.3432,13.354,13.339,46.4195]
[1672789661930,56.38081027,13.353,13.331,24.4422]
[1672789662150,12.76,13.35,13.332,160.4654]
[1672789662357,30.0,13.348,13.333,46.4195]
[1672789662560,20.0,13.347,13.333,46.4195]
[1672789662768,20.0,13.347,13.334,46.4195]
[1672789665626,20.0,13.347,13.335,24.2091]
[1672789665838,30.0,13.346,13.335,24.2091]
[1672789666046,20.0,13.345,13.335,24.2091]
[1672789668039,20.0,13.345,13.33,24.9132]
[1672789668040,86.25,13.344,13.32,12.9]
[1672789668361,12.74,13.34,13.324,158.7309]
[1672789668560,30.0,13.338,13.324,158.7309]
[1672789668771,76.28,13.337,13.324,158.7309]
[1672789668983,30.0,13.336,13.324,158.7309]
[1672789669207,20.0,13.335,13.324,158.7309]
[1672789669633,20.0,13.337,13.325,30.0]
[1672789669827,20.0,13.337,13.325,24.8483]
[1672789671515,20.0,13.337,13.325,65.92967784]
[1672789671734,71.5889,13.343,13.327,30.0]
[1672789671937,23.4124,13.343,13.327,30.0]
[1672789672686,46.2284,13.343,13.329,30.0]
[1672789672874,22.816,13.343,13.33,168.3883]
[1672789673398,22.816,13.343,13.331,30.0]
[1672789673732,22.816,13.343,13.331,54.3031]
[1672789674145,22.816,13.343,13.331,78.6615]
[1672789676775,22.816,13.343,13.331,48.6615]
[1672789678763,22.816,13.343,13.332,30.0]
[1672789679626,22.816,13.343,13.332,54.1545]
[1672789692033,22.816,13.343,13.332,24.1545]
[1672789694020,22.816,13.343,13.334,30.0]
[1672789694232,47.5519,13.348,13.334,30.0]
[1672789694452,20.0,13.347,13.334,52.871]
[1672789694655,21.13538274,13.347,13.334,52.871]
[1672789695059,1.13538274,13.347,13.334,52.871]
[1672789695813,1.13538274,13.347,13.34,12.78]
[1672789696213,1.13538274,13.347,13.342,30.0]
[1672789696648,0.00538274,13.347,13.342,41.08137784]
[1672789696860,56.16,13.365,13.343,20.0]
[1672789697064,30.0,13.364,13.344,79.1703]
[1672789697278,102.6786,13.366,13.35,12.78]
[1672789697471,46.5186,13.366,13.35,63.9]
[1672789697683,46.5186,13.366,13.35,63.68]
[1672789697890,68.9462,13.369,13.351,11.08137784]
[1672789697891,22.5579,13.369,13.351,11.08137784]
[1672789698127,22.5579,13.369,13.352,30.0]
[1672789698314,30.0,13.375,13.352,75.27765665]
[1672789698735,30.0,13.366,13.351,30.0]
[1672789698945,30.0,13.366,13.35,12.68]
[1672789701177,86.16,13.366,13.347,47.2493]
[1672789702000,86.16,13.366,13.348,112.7683]
[1672789702001,9.44895456,13.364,13.348,112.7683]
[1672789702324,9.44895456,13.364,13.33,81.12]
[1672789702325,2.0,13.354,13.33,93.76]
[1672789702519,2.0,13.354,13.339,182.7737]
[1672789702732,2.0,13.354,13.34,30.0]
[1672789703173,2.0,13.354,13.34,76.4311]
[1672789704957,32.0,13.354,13.34,46.4311]
[1672789705150,9.44895456,13.353,13.34,46.4311]
[1672789706940,2.0,13.354,13.341,30.0]
[1672789707582,2.0,13.354,13.34,89.1111]
[1672789708109,2.0,13.354,13.341,30.0]
[1672789710227,2.0,13.354,13.34,89.2011]
[1672789711149,2.0,13.354,13.341,30.0]
[1672789712198,2.0,13.354,13.341,41.08137784]
[1672789712522,2.0,13.354,13.341,30.0]
[1672789712929,2.0,13.354,13.341,77.97]
[1672789713252,2.0,13.354,13.341,89.05137784]
[1672789713467,2.0,13.354,13.341,77.97]
[1672789715044,2.0,13.354,13.341,47.97]
[1672789715867,2.0,13.354,13.342,30.0]
[1672789716078,2.0,13.354,13.342,77.4909]
[1672789716726,2.0,13.354,13.343,11.08137784]
[1672789716941,2.0,13.354,13.345,30.0]
[1672789717157,2.0,13.354,13.346,20.0]
[1672789717893,2.0,13.354,13.348,30.0]
[1672789720404,2.0,13.354,13.347,115.3978]
[1672789720732,1.0,13.354,13.348,30.0]
[1672789722624,1.0,13.354,13.348,41.08137784]
[1672789723134,1.0,13.354,13.348,30.0]
[1672789724832,1.0,13.354,13.347,115.3978]
[1672789725015,1.0,13.354,13.342,23.2785]
[1672789725232,1.0,13.354,13.343,112.9395]
[1672789730531,1.0,13.354,13.344,30.0]
[1672789730941,1.0,13.354,13.343,112.9395]
[1672789732945,1.0,13.354,13.344,30.0]
[1672789733161,1.0,13.354,13.345,20.0]
[1672789733895,1.0,13.354,13.346,30.0]
[1672789734085,1.0,13.354,13.347,20.0]
[1672789740498,1.0,13.354,13.349,30.0]
[1672789740925,1.0,13.354,13.349,41.08137784]
[1672789741445,1.0,13.354,13.349,156.63547784]
[1672789743150,66.9328026,13.36,13.349,156.63547784]
[1672789743358,43.0808026,13.36,13.351,30.0]
[1672789743761,43.0808026,13.36,13.352,31.08137784]
[1672789743971,43.0808026,13.36,13.353,30.0]
[1672789744182,43.0808026,13.36,13.354,20.0]
[1672789745344,43.0808026,13.36,13.353,30.0]
[1672789745558,43.0808026,13.36,13.351,75.922]
[1672789746812,43.0808026,13.36,13.351,45.922]
[1672789751876,43.0808026,13.36,13.351,57.00337784]
[1672789752112,43.0808026,13.36,13.352,30.0]
[1672789752945,43.0808026,13.36,13.351,45.922]
[1672789754417,43.0808026,13.36,13.352,30.0]
[1672789755366,43.0808026,13.36,13.351,45.922]
[1672789755683,43.0808026,13.36,13.352,30.0]
[1672789759884,43.0808026,13.36,13.353,17.19137784]
[1672789760105,43.0808026,13.36,13.354,20.0]
[1672789760716,43.0808026,13.36,13.354,30.0]
[1672789760926,43.0808026,13.36,13.355,20.0]
[1672789761142,43.0808026,13.36,13.351,45.922]
[1672789761365,43.0808026,13.36,13.353,30.0]
[1672789761768,43.0808026,13.36,13.353,41.08137784]
[1672789761982,43.0808026,13.36,13.355,30.0]
[1672789762202,43.0808026,13.36,13.356,20.0]
[1672789762399,43.0808026,13.36,13.357,30.0]
[1672789765559,43.0808026,13.36,13.359,30.0]
[1672789767354,43.0808026,13.36,13.359,62.00095903]
[1672789768298,43.0808026,13.36,13.357,53.80914378]
[1672789768493,77.88013406,13.367,13.359,70.14108257]
[1672789768828,77.88013406,13.367,13.361,30.0]
[1672789769030,77.88013406,13.367,13.36,100.78095903]
[1672789769245,77.88013406,13.367,13.359,11.08137784]
[1672789769653,77.88013406,13.367,13.359,41.08137784]
[1672789770613,77.88013406,13.367,13.359,11.08137784]
[1672789771449,77.88013406,13.367,13.358,46.4374]
[1672789772295,56.16,13.366,13.358,46.4374]
[1672789772914,30.0,13.365,13.358,46.4374]
[1672789773130,30.0,13.365,13.35,12.79]
[1672789773343,56.16,13.366,13.35,128.6951]
[1672789773344,56.17,13.364,13.35,128.6951]
[1672789773665,56.16,13.365,13.351,30.0]
[1672789774082,30.0,13.364,13.35,115.9051]
[1672789774298,56.17,13.363,13.35,115.9051]
[1672789774492,30.0,13.362,13.35,115.9051]
[1672789774712,56.18,13.361,13.35,115.9051]
[1672789775030,56.18,13.361,13.344,11.08137784]
[1672789775226,56.18,13.361,13.335,312.0]
[1672789775227,59.44895456,13.36,13.335,312.0]
[1672789775555,56.19,13.359,13.343,66.06392622]
[1672789775756,56.19,13.359,13.344,30.0]
[1672789775967,30.0,13.362,13.344,30.0]
[1672789775968,56.18,13.361,13.344,58.98137784]
[1672789776177,56.18,13.361,13.345,116.0645]
[1672789776383,56.18,13.361,13.346,50.0]
[1672789776594,30.0,13.36,13.346,20.0]
[1672789776805,30.0,13.358,13.346,20.0]
[1672789777862,56.19,13.359,13.346,20.0]
[1672789778393,30.0,13.36,13.346,20.0]
[1672789778611,56.19,13.359,13.346,20.0]
[1672789779340,56.19,13.359,13.346,31.08137784]
[1672789779767,30.0,13.36,13.346,31.08137784]
[1672789780077,56.19,13.359,13.346,31.08137784]
[1672789780491,56.18,13.361,13.347,30.0]
[1672789780706,56.18,13.362,13.347,30.0]
[1672789780917,56.18,13.362,13.347,41.08137784]
[1672789782497,101.5637,13.363,13.348,14.21]
[1672789782714,22.6066,13.364,13.348,14.21]
[1672789782897,22.6066,13.364,13.349,11.08137784]
[1672789783111,56.15,13.369,13.35,78.47]
[1672789783338,56.15,13.369,13.351,30.0]
[1672789783549,56.14,13.372,13.352,37.33]
[1672789783736,56.14,13.372,13.353,30.0]
[1672789783946,56.14,13.372,13.354,17.91]
[1672789784168,56.14,13.372,13.355,98.4451]
[1672789784387,56.14,13.372,13.357,30.0]
[1672789784795,56.14,13.372,13.358,70.47197073]
[1672789785007,56.14,13.372,13.359,30.0]
[1672789785225,56.14,13.372,13.359,262.03914254]
[1672789785441,56.13,13.373,13.359,262.03914254]
[1672789785644,56.13,13.373,13.36,11.08137784]
[1672789785858,56.13,13.374,13.36,11.08137784]
[1672789786277,30.0,13.373,13.359,113.1179]
[1672789786486,56.14,13.372,13.359,113.1179]
[1672789786701,30.0,13.371,13.359,113.1179]
[1672789787012,30.0,13.369,13.359,113.1179]
[1672789789001,56.14,13.37,13.359,113.1179]
[1672789790894,56.14,13.372,13.359,113.1179]
[1672789791517,56.13,13.374,13.36,11.08137784]
[1672789791973,56.13,13.374,13.36,41.08137784]
[1672789792992,56.12,13.375,13.36,41.08137784]
[1672789793201,56.12,13.375,13.361,11.08137784]
[1672789794574,56.11,13.379,13.363,30.0]
[1672789794786,56.11,13.379,13.364,20.0]
[1672789796053,50.0,13.378,13.364,51.4540927]
[1672789796265,56.11,13.377,13.361,24.6824]
[1672789796478,30.0,13.375,13.361,24.6824]
[1672789796684,30.0,13.373,13.361,24.6824]
[1672789796882,56.14,13.372,13.361,24.6824]
[1672789799192,30.0,13.371,13.361,24.6824]
[1672789800659,56.14,13.37,13.361,24.6824]
[1672789801404,30.0,13.371,13.361,24.6824]
[1672789802454,56.14,13.372,13.361,24.6824]
[1672789802786,30.0,13.371,13.361,24.6824]
[1672789804047,56.14,13.372,13.361,24.6824]
[1672789804459,56.13,13.374,13.361,24.6824]
[1672789805289,56.13,13.374,13.361,35.76377784]
[1672789805513,30.0,13.374,13.361,35.76377784]
[1672789805729,56.13,13.373,13.361,35.76377784]
[1672789806037,56.13,13.373,13.361,24.6824]
[1672789806240,56.12,13.375,13.361,24.6824]
[1672789807613,56.11,13.377,13.361,35.76377784]
[1672789807830,20.0,13.376,13.361,35.76377784]
[1672789808039,56.12,13.375,13.361,35.76377784]
[1672789810241,56.12,13.375,13.361,24.6824]
[1672789812044,56.12,13.375,13.363,30.0]
[1672789813394,56.12,13.375,13.363,41.08137784]
[1672789813606,47.4597,13.378,13.364,20.0]
[1672789814142,47.4597,13.378,13.365,30.0]
[1672789814323,47.4597,13.378,13.367,30.0]
[1672789814535,43.0808026,13.38,13.367,30.0]
[1672789814750,43.0808026,13.38,13.368,11.08137784]
[1672789814959,43.0808026,13.38,13.367,30.0]
[1672789815175,56.11,13.379,13.367,30.0]
[1672789815399,56.11,13.379,13.367,77.9004]
[1672789815615,43.0808026,13.38,13.368,11.08137784]
[1672789816032,43.0808026,13.38,13.367,77.9004]
[1672789816243,56.11,13.379,13.367,77.9004]
[1672789816639,56.11,13.379,13.368,11.08137784]
[1672789816858,43.0808026,13.38,13.368,11.08137784]
[1672789817283,56.11,13.379,13.367,77.9004]
[1672789817698,43.0808026,13.38,13.367,77.9004]
[1672789818545,43.0808026,13.38,13.367,47.9004]
[1672789818761,56.11,13.379,13.368,30.0]
[1672789818954,30.0,13.378,13.367,11.08137784]
[1672789819175,30.0,13.376,13.365,119.2895]
[1672789819397,56.12,13.375,13.365,119.2895]
[1672789820024,30.0,13.374,13.365,119.2895]
[1672789820237,56.13,13.373,13.365,119.2895]
[1672789820642,30.0,13.372,13.365,119.2895]
[1672789820854,56.14,13.371,13.365,119.2895]
[1672789821062,30.0,13.372,13.365,119.2895]
[1672789821696,56.13,13.373,13.365,119.2895]
[1672789821911,30.0,13.374,13.365,119.2895]
[1672789822123,56.13,13.373,13.365,119.2895]
[1672789825590,30.0,13.374,13.365,119.2895]
[1672789826731,30.0,13.372,13.365,119.2895]
[1672789830016,56.14,13.371,13.365,119.2895]
[1672789830345,30.0,13.37,13.365,119.2895]
[1672789832016,30.0,13.37,13.355,74.5415]
[1672789832017,30.0,13.37,13.355,49.8377]
[1672789832229,20.0,13.369,13.355,49.8377]
[1672789832963,30.0,13.37,13.356,20.0]
[1672789833176,30.0,13.37,13.356,69.8377]
[1672789833585,30.0,13.37,13.353,134.1128]
[1672789833586,20.0,13.369,13.353,134.1128]
[1672789833797,20.0,13.369,13.353,183.9505]
[1672789834218,103.3228,13.371,13.354,30.0]
[1672789834439,47.1828,13.371,13.355,20.0]
[1672789834653,47.1828,13.371,13.356,46.7453]
[1672789834949,30.0,13.37,13.356,46.7453]
[1672789835382,56.15,13.369,13.356,46.7453]
[1672789835795,30.0,13.367,13.356,46.7453]
[1672789836000,47.1828,13.371,13.356,46.7453]
[1672789836229,47.1828,13.371,13.357,46.7453]
[1672789836425,47.1828,13.371,13.358,46.7453]
[1672789836962,47.1828,13.371,13.359,119.7084]
[1672789837590,54.7899,13.374,13.359,167.5763]
[1672789837800,54.7899,13.374,13.36,47.8679]
[1672789838978,30.0,13.374,13.361,47.8679]
[1672789840028,86.12,13.375,13.361,47.8679]
[1672789840248,86.12,13.375,13.362,47.8679]
[1672789842029,56.12,13.375,13.362,47.8679]
[1672789846952,30.0,13.374,13.362,47.8679]
[1672789847162,56.13,13.373,13.362,47.8679]
[1672789847375,30.0,13.372,13.362,47.8679]
[1672789848206,56.13,13.373,13.362,47.8679]
[1672789850430,30.0,13.372,13.362,47.8679]
[1672789850633,30.0,13.372,13.359,119.7084]
[1672789850634,6.36,13.37,13.359,119.7084]
[1672789850847,30.0,13.372,13.359,167.5121]
[1672789850848,56.14,13.371,13.359,167.5121]
[1672789852423,56.13,13.373,13.359,167.5121]
[1672789852633,56.13,13.373,13.36,47.8037]
[1672789853468,109.9171,13.374,13.36,47.8037]
[1672789853677,109.9171,13.374,13.361,48.0352]
[1672789856723,169.35232132,13.374,13.361,48.0352]
[1672789857348,79.9171,13.374,13.361,48.0352]
[1672789857588,23.7871,13.374,13.361,48.0352]
[1672789857793,30.0,13.373,13.361,48.0352]
[1672789858824,30.0,13.371,13.361,48.0352]
[1672789861891,86.13,13.373,13.361,48.0352]
[1672789865045,30.0,13.373,13.361,48.0352]
[1672789866096,30.0,13.373,13.361,47.5352]
[1672789866408,30.0,13.371,13.361,47.5352]
[1672789867247,29.0,13.371,13.361,47.5352]
[1672789868303,56.13,13.373,13.361,47.5352]
[1672789868500,53.7871,13.374,13.361,47.5352]
[1672789868705,30.0,13.372,13.361,47.5352]
[1672789875217,30.0,13.373,13.361,47.5352]
[1672789875652,86.13,13.373,13.361,47.5352]
[1672789875862,30.0,13.373,13.361,47.5352]
[1672789876605,29.5,13.371,13.361,47.5352]
[1672789878077,56.13,13.372,13.361,47.5352]
[1672789878906,30.0,13.372,13.361,47.5352]
[1672789879121,56.13,13.373,13.361,47.5352]
[1672789879327,23.7871,13.374,13.361,47.5352]
[1672789879539,23.7871,13.374,13.362,23.8212]
[1672789879758,30.0,13.372,13.362,23.8212]
[1672789880915,56.13,13.373,13.362,23.8212]
[1672789881232,23.7871,13.374,13.362,23.8212]
[1672789881542,79.9171,13.374,13.362,23.8212]
[1672789881957,79.9171,13.374,13.362,46.6356]
[1672789882152,30.0,13.373,13.362,46.6356]
[1672789883319,79.9171,13.374,13.362,46.6356]
[1672789883520,23.7871,13.374,13.362,22.8144]
[1672789884046,43.0808026,13.38,13.363,20.0]
[1672789884257,38.94006703,13.396,13.375,78.6052]
[1672789884570,77.89118029,13.399,13.363,162.39447241]
[1672789884571,56.03,13.398,13.38,6.36]
[1672789884776,56.03,13.398,13.376,135.8605]
[1672789884777,38.94006703,13.393,13.381,22.7286]
[1672789885014,43.0808026,13.4,13.381,22.7286]
[1672789885015,94.96006703,13.399,13.381,22.7286]
[1672789885202,6.35,13.39,13.377,24.0209]
[1672789885406,56.03,13.397,13.377,24.0209]
[1672789885626,20.0,13.396,13.378,48.6102]
[1672789885838,86.04,13.395,13.378,48.6102]
[1672789886060,56.04,13.395,13.378,48.6102]
[1672789886257,56.03,13.397,13.38,30.0]
[1672789886469,56.02,13.399,13.38,36.36]
[1672789886679,43.0808026,13.4,13.382,30.0]
[1672789887004,43.0808026,13.4,13.383,146.94187784]
[1672789887218,43.0808026,13.4,13.384,30.0]
[1672789887409,43.0808026,13.4,13.39,6.36]
[1672789887620,43.0808026,13.4,13.386,30.0]
[1672789888047,43.0808026,13.4,13.386,41.08137784]
[1672789888244,43.0808026,13.4,13.386,30.0]
[1672789888896,43.0808026,13.4,13.386,41.08137784]
[1672789889514,43.0808026,13.4,13.385,48.6102]
[1672789889723,49.4208026,13.4,13.385,48.6102]
[1672789889928,30.0,13.398,13.385,48.6102]
[1672789890146,30.0,13.396,13.385,48.6102]
[1672789890349,56.04,13.395,13.385,48.6102]
[1672789890568,86.03,13.396,13.385,48.6102]
[1672789890772,30.0,13.396,13.385,48.6102]
[1672789890979,30.0,13.394,13.385,48.6102]
[1672789891188,56.05,13.393,13.385,48.6102]
[1672789891627,30.0,13.392,13.385,48.6102]
[1672789891947,56.06,13.391,13.383,115.8605]
[1672789892148,56.06,13.391,13.377,24.5754]
[1672789892355,30.0,13.389,13.377,135.6808]
[1672789892558,76.07,13.388,13.377,135.6808]
[1672789892763,30.0,13.387,13.377,135.6808]
[1672789892989,56.08,13.386,13.377,111.1054]
[1672789893207,30.0,13.385,13.377,111.1054]
[1672789893513,30.0,13.385,13.373,24.95]
[1672789893514,56.08,13.384,13.36,36.36]
[1672789893833,30.0,13.383,13.367,11.08137784]
[1672789894026,30.0,13.381,13.367,11.08137784]
[1672789894230,56.08,13.386,13.365,116.996]
[1672789894446,56.08,13.386,13.366,41.08137784]
[1672789894878,56.08,13.386,13.367,11.08137784]
[1672789895293,56.07,13.387,13.367,11.08137784]
[1672789895505,20.0,13.386,13.368,46.2156]
[1672789895817,20.0,13.386,13.37,6.36]
[1672789896244,20.0,13.388,13.371,11.08137784]
[1672789896450,20.0,13.389,13.372,30.0]
[1672789896659,20.0,13.389,13.372,164.3384]
[1672789896874,56.04,13.394,13.374,30.0]
[1672789897089,49.5008026,13.4,13.376,30.0]
[1672789897090,56.04,13.395,13.376,30.0]
[1672789897312,56.04,13.395,13.377,22.6808]
[1672789897721,30.0,13.394,13.377,22.6808]
[1672789897930,56.05,13.393,13.377,22.6808]
[1672789898141,30.0,13.392,13.377,22.6808]
[1672789898865,56.05,13.393,13.377,22.6808]
[1672789899286,56.05,13.393,13.377,33.76217784]
[1672789899491,56.05,13.393,13.378,30.0]
[1672789899712,30.0,13.394,13.378,30.0]
[1672789899930,56.04,13.395,13.379,112.8701]
[1672789901079,56.04,13.395,13.38,30.0]
[1672789901494,56.03,13.397,13.38,42.7]
[1672789901704,20.0,13.396,13.38,65.9415]
[1672789901913,20.0,13.396,13.38,77.02287784]
[1672789902135,20.0,13.397,13.38,77.02287784]
[1672789902667,20.0,13.398,13.38,77.02287784]
[1672789902978,30.0,13.396,13.381,23.2415]
[1672789903806,56.03,13.397,13.381,23.2415]
[1672789904013,144.2829026,13.4,13.381,23.2415]
[1672789904014,43.0808026,13.4,13.381,34.32287784]
[1672789904231,43.0808026,13.4,13.39,12.69]
[1672789904436,43.0808026,13.4,13.39,63.45]
[1672789904656,43.0808026,13.4,13.391,11.08137784]
[1672789904871,43.0808026,13.4,13.39,12.76]
[1672789906343,43.0808026,13.4,13.387,143.1292]
[1672789906780,43.0808026,13.4,13.388,11.08137784]
[1672789909707,43.0808026,13.4,13.391,30.0]
[1672789910130,43.0808026,13.4,13.392,31.08137784]
[1672789910341,43.0808026,13.4,13.393,30.0]
[1672789910538,43.0808026,13.4,13.394,20.0]
[1672789913168,43.0808026,13.4,13.39,23.74137784]
[1672789913384,43.0808026,13.4,13.388,48.4192]
[1672789913602,43.0808026,13.4,13.389,41.08137784]
[1672789914334,43.0808026,13.4,13.389,11.08137784]